bitfinex-derivatives/quotes_SOLF0:USTF0_20250111
["timestamp","ask_amount","ask_price","bid_price","bid_amount"]
[1736612724367,7.1679343,186.25,186.22,110.00748962]
[1736612726264,7.1679343,186.25,186.22,2.6861]
[1736612726469,9.8537343,186.25,186.22,2.6861]
[1736612729568,7.1679343,186.25,186.23,2.686]
[1736612729773,9.8535343,186.27,186.23,2.686]
[1736612730365,2.6856,186.26,186.23,2.686]
[1736612735980,2.6857,186.25,186.23,2.686]
[1736612736480,2.6857,186.25,186.2,7.1679343]
[1736612736682,2.6857,186.25,186.22,2.6861]
[1736612755999,2.6856,186.27,186.23,2.686]
[1736612756201,2.6856,186.27,186.22,7.1679343]
[1736612757094,7.1679343,186.29,186.22,7.1679343]
[1736612757397,2.6854,186.27,186.22,7.1679343]
[1736612757791,2.6854,186.27,186.24,2.6859]
[1736612766610,7.1679343,186.29,186.21,1.5379]
[1736612766812,2.6858,186.25,186.22,9.8540343]
[1736612772816,15.00367523,186.33,186.23,2.6859]
[1736612773214,7.1679343,186.29,186.23,2.6859]
[1736612773413,2.6855,186.27,186.23,2.6859]
[1736612773816,2.6856,186.27,186.23,2.6859]
[1736612777918,7.1679343,186.27,186.21,1.5379]
[1736612778222,7.1679343,186.27,186.22,2.6861]
[1736612779220,2.6856,186.26,186.22,2.6861]
[1736612780323,7.1679343,186.27,186.21,4.2241]
[1736612780823,2.6858,186.25,186.21,4.2241]
[1736612787227,2.6858,186.25,186.21,1.5379]
[1736612787426,2.6858,186.25,186.22,2.6861]
[1736612789723,15.00251395,186.33,186.22,2.6861]
[1736612789923,9.8535343,186.26,186.22,2.6861]
[1736612790528,2.6856,186.26,186.22,2.6861]
[1736612790727,9.8535343,186.26,186.22,2.6861]
[1736612801129,9.8538343,186.24,186.21,2.6863]
[1736612801329,7.1679343,186.24,186.18,109.34686473]
[1736612802827,7.1679343,186.24,186.19,2.6865]
[1736612804129,2.6862,186.22,186.19,2.6865]
[1736612805534,9.8541343,186.22,186.19,2.6865]
[1736612805936,2.6863,186.21,186.17,2.6868]
[1736612806435,2.6863,186.21,186.16,7.1679343]
[1736612808140,2.6863,186.21,186.18,2.6867]
[1736612814935,7.1679343,186.2,186.13,3.1538]
[1736612815139,7.1679343,186.16,186.1,1.6122]
[1736612815336,7.1679343,186.12,186.07,19.13590747]
[1736612815641,2.6879,186.11,186.07,19.13590747]
[1736612815934,7.1679343,186.1,186.07,19.13590747]
[1736612816339,7.1679343,186.1,186.06,10.17387704]
[1736612816732,2.6875,186.13,186.09,2.688]
[1736612816936,7.1679343,186.12,186.07,7.1679343]
[1736612818135,7.1679343,186.12,186.09,2.688]
[1736612818336,5.4,186.18,186.09,7.1679343]
[1736612818538,7.1679343,186.16,186.09,7.1679343]
[1736612818737,7.1679343,186.16,186.11,2.6876]
[1736612818942,7.1679343,186.16,186.1,1.6577]
[1736612819734,7.1679343,186.16,186.12,2.6876]
[1736612819933,7.1679343,186.16,186.1,1.6577]
[1736612820843,9.8550343,186.16,186.11,2.6876]
[1736612821043,5.4,186.18,186.11,7.1679343]
[1736612821239,7.1679343,186.17,186.11,7.1679343]
[1736612822642,7.1679343,186.17,186.13,2.6873]
[1736612823143,7.1679343,186.17,186.14,2.6872]
[1736612826546,7.1679343,186.17,186.11,10.3140343]
[1736612826742,7.1679343,186.17,186.13,2.6874]
[1736612828349,9.8548343,186.17,186.13,2.6874]
[1736612828550,2.6869,186.17,186.13,2.6874]
[1736612828947,9.8548343,186.17,186.13,2.6874]
[1736612830653,2.6867,186.18,186.14,2.6873]
[1736612830851,7.1679343,186.17,186.14,2.6873]
[1736612831248,7.1679343,186.17,186.11,10.3140343]
[1736612831552,9.8548343,186.17,186.13,2.6874]
[1736612833053,7.1679343,186.15,186.13,2.6874]
[1736612834852,7.1679343,186.15,186.12,2.6876]
[1736612835249,5.4,186.22,186.11,3.1461]
[1736612835553,7.1679343,186.16,186.11,3.1461]
[1736612836053,7.1679343,186.16,186.13,2.6874]
[1736612838052,7.1679343,186.16,186.14,2.6873]
[1736612838555,2.687,186.17,186.14,2.6873]
[1736612838955,9.8549343,186.17,186.14,2.6873]
[1736612842260,7.1679343,186.17,186.11,3.1461]
[1736612842455,2.687,186.16,186.13,2.6874]
[1736612842960,7.1679343,186.15,186.13,2.6874]
[1736612845464,7.1679343,186.15,186.12,2.6875]
[1736612846857,7.1679343,186.15,186.1,106.30323087]
[1736612847061,2.6874,186.13,186.1,108.99103087]
[1736612848073,9.8553343,186.13,186.1,108.99103087]
[1736612848867,7.1679343,186.13,186.06,8.7994343]
[1736612849066,2.6876,186.12,186.08,2.6882]
[1736612849767,2.6876,186.12,186.09,2.688]
[1736612854670,2.6876,186.12,186.07,2.688]
[1736612854873,2.6875,186.11,186.06,1.6315]
[1736612855069,9.8554343,186.11,186.06,1.6315]
[1736612855274,7.1679343,186.11,186.06,1.6315]
[1736612857072,2.6877,186.1,186.06,4.3197]
[1736612857778,9.66606095,186.2,186.06,1.6315]
[1736612857972,7.1679343,186.12,186.08,2.6878]
[1736612858177,7.1679343,186.12,186.06,1.6315]
[1736612858576,7.1679343,186.12,186.08,2.6878]
[1736612859375,7.1679343,186.12,186.09,2.6878]
[1736612859584,85.06455692,186.13,186.07,7.1679343]
[1736612860679,85.06455692,186.13,186.1,2.6876]
[1736612864781,2.6867,186.17,186.13,2.6872]
[1736612864977,7.1679343,186.17,186.13,2.6872]
[1736612866077,7.1679343,186.17,186.14,2.687]
[1736612868090,9.8545343,186.17,186.14,2.687]
[1736612868683,2.6866,186.17,186.14,2.687]
[1736612868883,9.8545343,186.17,186.14,2.687]
[1736612880692,2.6865,186.18,186.15,2.6869]
[1736612880892,9.8544343,186.18,186.15,2.6869]
[1736612881796,9.8541343,186.2,186.17,2.6866]
[1736612887396,7.1679343,186.2,186.13,10.4075343]
[1736612887600,7.1679343,186.18,186.13,3.2396]
[1736612889205,7.1679343,186.18,186.16,2.6868]
[1736612893300,7.1679343,186.18,186.13,3.2396]
[1736612893603,7.1679343,186.18,186.17,2.6866]
[1736612895106,7.15256299,186.3,186.16,7.1679343]
[1736612895305,7.1679343,186.23,186.18,7.1679343]
[1736612895501,7.1679343,186.23,186.19,1.5793]
[1736612895706,7.1679343,186.23,186.2,2.6861]
[1736612902412,7.1679343,186.23,186.19,1.5793]
[1736612902609,7.1679343,186.23,186.21,2.686]
[1736612903211,2.6857,186.24,186.21,2.686]
[1736612903411,9.8536343,186.24,186.21,2.686]
[1736612905717,2.6859,186.22,186.19,2.6862]
[1736612907416,7.1679343,186.22,186.19,2.6862]
[1736612907617,7.1679343,186.22,186.2,2.686]
[1736612908021,7.1679343,186.22,186.17,112.18993949]
[1736612908616,7.1679343,186.22,186.2,2.686]
[1736612909822,7.1679343,186.22,186.21,2.686]
[1736612910019,2.6851,186.27,186.19,7.1679343]
[1736612910219,7.1679343,186.26,186.2,1.5653]
[1736612911123,7.1679343,186.28,186.23,7.1679343]
[1736612911512,1.5846,186.34,186.27,2.685]
[1736612911721,7.1679343,186.29,186.23,7.1679343]
[1736612913226,7.1679343,186.29,186.28,2.6849]
[1736612913623,1.5955,186.39,186.23,7.1679343]
[1736612913926,7.1679343,186.31,186.29,2.6848]
[1736612914324,7.1679343,186.31,186.3,2.6847]
[1736612916625,7.1679343,186.31,186.26,1.6343]
[1736612916832,7.1679343,186.28,186.21,3.188]
[1736612917032,7.1679343,186.25,186.21,3.188]
[1736612917431,7.1679343,186.25,186.23,2.6856]
[1736612923235,7.1679343,186.25,186.24,2.6855]
[1736612929137,7.1679343,186.28,186.21,10.3559343]
[1736612930339,7.1679343,186.28,186.25,2.6853]
[1736612930637,7.1679343,186.28,186.21,10.3559343]
[1736612931839,7.1679343,186.28,186.25,2.6852]
[1736612933141,83.24313816,186.31,186.25,7.1679343]
[1736612933341,7.1679343,186.32,186.25,7.1679343]
[1736612934042,9.8523343,186.32,186.28,2.6849]
[1736612936442,7.1679343,186.32,186.25,7.1679343]
[1736612936644,7.1679343,186.32,186.29,2.6848]
[1736612937144,7.1679343,186.32,186.25,7.1679343]
[1736612937336,7.1679343,186.32,186.3,2.6845]
[1736612939857,7.1679343,186.32,186.22,7.1679343]
[1736612940042,7.1679343,186.28,186.22,7.1679343]
[1736612941144,7.1679343,186.28,186.25,2.6854]
[1736612943336,7.1679343,186.28,186.22,7.1679343]
[1736612943646,7.1679343,186.28,186.26,2.6852]
[1736612944241,2.6845,186.32,186.22,7.1679343]
[1736612944443,7.1679343,186.29,186.24,7.1679343]
[1736612945245,7.1679343,186.31,186.28,2.6849]
[1736612952552,7.1679343,186.31,186.21,3.188]
[1736612952747,7.1679343,186.31,186.26,2.6851]
[1736612952942,7.1679343,186.31,186.23,7.1679343]
[1736612953239,7.1679343,186.29,186.23,7.1679343]
[1736612953951,7.1679343,186.29,186.27,2.685]
[1736612955747,2.6846,186.31,186.27,2.685]
[1736612955954,7.1679343,186.3,186.27,2.685]
[1736612958059,2.6846,186.31,186.27,2.685]
[1736612958253,2.6843,186.33,186.3,2.6846]
[1736612958555,128.37275871,186.34,186.27,7.1679343]
[1736612958855,128.37275871,186.34,186.31,2.6844]
[1736612959248,191.0,186.4,186.27,7.1679343]
[1736612959457,7.1679343,186.35,186.28,1.6196]
[1736612959655,7.1679343,186.37,186.29,7.1679343]
[1736612959847,7.1679343,186.37,186.29,10.3684343]
[1736612960247,7.1679343,186.37,186.33,2.6841]
[1736612961655,9.8516343,186.37,186.33,2.6841]
[1736612963656,2.6837,186.37,186.33,2.6841]
[1736612963856,9.8516343,186.37,186.33,2.6841]
[1736612969960,2.6835,186.39,186.34,2.684]
[1736612970260,7.1679343,186.38,186.32,7.1679343]
[1736612970461,7.1679343,186.36,186.29,3.2005]
[1736612970758,7.1679343,186.36,186.29,10.3684343]
[1736612971361,2.684,186.35,186.31,2.6844]
[1736612972362,2.684,186.35,186.29,10.3684343]
[1736612972562,2.684,186.35,186.32,2.6844]
[1736612977961,2.6843,186.33,186.29,2.6847]
[1736612978162,7.1679343,186.34,186.28,7.1679343]
[1736612979069,9.8520343,186.34,186.3,2.6845]
[1736612979670,9.8520343,186.34,186.31,2.6845]
[1736612983267,7.1679343,186.36,186.33,2.6842]
[1736612985166,2.6835,186.38,186.34,2.684]
[1736612985376,7.1679343,186.38,186.32,7.1679343]
[1736612987073,7.1679343,186.38,186.34,2.684]
[1736612987276,7.1679343,186.38,186.32,7.1679343]
[1736612988172,7.1679343,186.38,186.35,2.6839]
[1736612988870,186.24414634,186.53,186.36,7.1679343]
[1736612989073,7.1679343,186.5,186.43,7.1679343]
[1736612989475,2.6823,186.47,186.43,7.1679343]
[1736612989877,2.6823,186.47,186.43,9.8507343]
[1736612994180,2.6824,186.46,186.43,9.8507343]
[1736612994474,7.1679343,186.44,186.37,7.1679343]
[1736612994681,2.6831,186.42,186.37,7.1679343]
[1736612994876,2.6831,186.42,186.37,9.8514343]
[1736612995072,2.6831,186.42,186.37,7.1679343]
[1736612996077,2.6831,186.42,186.38,2.6835]
[1736612996780,7.1679343,186.44,186.37,7.1679343]
[1736612997080,7.1679343,186.4,186.35,7.1679343]
[1736612998081,2.6834,186.39,186.35,9.8517343]
[1736613001279,7.1679343,186.4,186.35,7.1679343]
[1736613001480,7.1679343,186.38,186.32,76.77560456]
[1736613001885,2.6839,186.36,186.32,76.77560456]
[1736613002479,2.684,186.35,186.32,76.77560456]
[1736613002680,7.1679343,186.34,186.26,1.6547]
[1736613002879,7.1679343,186.34,186.27,7.1679343]
[1736613003685,2.6843,186.33,186.28,2.6849]
[1736613003881,2.6843,186.33,186.23,1.6547]
[1736613003882,2.6843,186.33,186.29,7.1679343]
[1736613004383,2.6841,186.34,186.29,9.8527343]
[1736613004886,2.6841,186.34,186.3,2.6846]
[1736613005186,7.1679343,186.39,186.33,7.1679343]
[1736613005590,2.6835,186.38,186.33,9.8521343]
[1736613006892,2.6837,186.37,186.33,9.8521343]
[1736613010691,2.6844,186.33,186.29,2.6848]
[1736613010996,2.6844,186.33,186.26,83.96185624]
[1736613010997,7.1679343,186.33,186.26,83.96185624]
[1736613011293,2.6845,186.32,186.28,2.6848]
[1736613012095,2.6845,186.32,186.26,83.96185624]
[1736613012397,9.8519343,186.35,186.31,2.6845]
[1736613013292,7.1679343,186.35,186.33,2.6842]
[1736613013494,9.8517343,186.37,186.33,2.6842]
[1736613013697,0.1981,186.43,186.32,7.1679343]
[1736613013897,7.1679343,186.38,186.32,7.1679343]
[1736613014299,9.8514343,186.38,186.34,2.684]
[1736613015908,5.38,186.43,186.34,7.1679343]
[1736613016208,7.1679343,186.4,186.34,7.1679343]
[1736613017104,9.8512343,186.4,186.36,2.6837]
[1736613017305,126.58579222,186.44,186.34,7.1679343]
[1736613017502,7.1679343,186.42,186.36,7.1679343]
[1736613018008,7.1679343,186.42,186.38,2.6834]
[1736613018009,9.8509343,186.42,186.38,2.6834]
[1736613018208,7.1679343,186.42,186.36,7.1679343]
[1736613018613,132.15222652,186.44,186.36,7.1679343]
[1736613018807,2.6828,186.43,186.38,2.6835]
[1736613019009,2.6828,186.43,186.36,7.1679343]
[1736613019813,134.83492652,186.44,186.4,2.6832]
[1736613020014,7.1679343,186.44,186.38,7.1679343]
[1736613020210,7.1679343,186.44,186.39,1.5825]
[1736613020607,7.1679343,186.44,186.41,2.683]
[1736613020804,7.1679343,186.46,186.41,2.683]
[1736613021009,7.1679343,186.46,186.4,7.1679343]
[1736613021414,148.99531707,186.6,186.45,7.1679343]
[1736613021612,7.1679343,186.55,186.49,7.1679343]
[1736613021910,7.1679343,186.56,186.49,7.1679343]
[1736613023114,2.6813,186.54,186.5,2.6818]
[1736613023609,2.6813,186.54,186.47,11.18364451]
[1736613023906,2.6813,186.54,186.49,2.6819]
[1736613024913,11.18364451,186.55,186.45,2.6824]
[1736613025112,1.5454,186.59,186.4,3.1442]
[1736613025411,11.18364451,186.51,186.4,14.32784451]
[1736613026408,124.94807316,186.57,186.4,14.32784451]
[1736613026715,11.18364451,186.52,186.43,2.6827]
[1736613027312,2.6821,186.49,186.43,2.6827]
[1736613028116,2.6821,186.49,186.4,14.32784451]
[1736613028316,2.6821,186.49,186.44,2.6826]
[1736613032014,11.18364451,186.52,186.43,11.18364451]
[1736613032217,2.6816,186.52,186.47,2.6822]
[1736613032616,11.18364451,186.55,186.47,2.6822]
[1736613035415,2.6816,186.52,186.47,2.6822]
[1736613039909,11.18364451,186.55,186.43,11.18364451]
[1736613040220,2.6812,186.54,186.5,2.6817]
[1736613041115,2.681,186.56,186.52,2.6814]
[1736613042420,2.681,186.56,186.47,4.7009]
[1736613042609,2.681,186.56,186.49,11.18364451]
[1736613042811,124.94807316,186.57,186.49,11.18364451]
[1736613043218,124.94807316,186.57,186.54,2.6811]
[1736613043420,124.94807316,186.57,186.53,7.15507198]
[1736613043619,2.6807,186.58,186.53,7.15507198]
[1736613044919,2.6807,186.58,186.54,2.6812]
[1736613048321,2.6807,186.58,186.55,2.681]
[1736613048628,9.83557198,186.59,186.55,2.681]
[1736613049023,9.83557198,186.59,186.56,2.6809]
[1736613049628,2.6802,186.62,186.57,2.6807]
[1736613049830,7.15507198,186.61,186.57,2.6807]
[1736613050720,2.6802,186.62,186.58,2.6806]
[1736613050923,2.6802,186.62,186.57,7.15507198]
[1736613052227,2.6802,186.62,186.59,2.6805]
[1736613054730,9.83497198,186.64,186.6,2.6804]
[1736613054925,2.6799,186.64,186.6,2.6804]
[1736613055632,2.6799,186.64,186.59,7.15507198]
[1736613055833,2.6799,186.64,186.61,2.6802]
[1736613056231,2.6799,186.64,186.59,7.15507198]
[1736613056425,2.6802,186.62,186.59,2.6805]
[1736613056630,13.14395172,186.71,186.56,7.15507198]
[1736613056631,7.15507198,186.63,186.56,7.15507198]
[1736613056829,7.15507198,186.58,186.54,1.5469]
[1736613057134,7.15507198,186.56,186.54,1.5469]
[1736613057930,2.6809,186.57,186.54,1.5469]
[1736613059432,7.15507198,186.58,186.54,1.5469]
[1736613059633,9.83577198,186.58,186.54,4.2281]
[1736613060338,2.6809,186.57,186.53,2.6814]
[1736613060638,7.15507198,186.58,186.53,2.6814]
[1736613062333,7.15507198,186.56,186.51,2.6816]
[1736613063242,2.6813,186.54,186.51,2.6816]
[1736613065439,7.15507198,186.56,186.51,2.6816]
[1736613065738,7.15507198,186.56,186.52,2.6815]
[1736613065939,7.15507198,186.58,186.52,7.15507198]
[1736613067134,1.553,186.62,186.54,7.15507198]
[1736613067340,7.15507198,186.61,186.54,7.15507198]
[1736613067642,7.15507198,186.61,186.56,7.15507198]
[1736613067937,2.6805,186.6,186.56,9.83587198]
[1736613068331,2.6805,186.6,186.57,2.6808]
[1736613070938,2.6805,186.6,186.56,9.83597198]
[1736613073443,2.6805,186.6,186.57,2.6808]
[1736613081557,2.6803,186.61,186.57,2.6808]
[1736613081754,1.6017,186.67,186.58,7.15507198]
[1736613082058,7.15507198,186.66,186.6,7.15507198]
[1736613082356,7.15507198,186.68,186.6,7.15507198]
[1736613083061,7.15507198,186.68,186.64,2.6798]
[1736613083250,7.15507198,186.7,186.64,2.6798]
[1736613083457,7.15507198,186.7,186.64,9.83487198]
[1736613083955,2.6792,186.68,186.64,7.15507198]
[1736613084153,2.6792,186.68,186.65,2.6796]
[1736613084361,124.81406043,186.72,186.64,7.15507198]
[1736613084558,2.679,186.7,186.66,2.6795]
[1736613085154,148.99531707,186.81,186.68,7.15507198]
[1736613085359,14.98376506,186.8,186.74,7.15507198]
[1736613085558,2.6781,186.76,186.74,7.15507198]
[1736613087366,2.6781,186.76,186.71,13.83475283]
[1736613088165,9.43188393,186.81,186.71,11.15605283]
[1736613088365,2.6784,186.74,186.69,2.679]
[1736613089266,2.6784,186.74,186.7,2.6789]
[1736613092364,2.6788,186.72,186.68,11.15605283]
[1736613092570,11.15605283,186.75,186.65,11.15605283]
[1736613093070,11.15605283,186.75,186.65,13.83565283]
[1736613093870,11.15605283,186.78,186.65,11.15605283]
[1736613094074,11.15605283,186.78,186.68,11.15605283]
[1736613094874,2.6784,186.75,186.7,2.6788]
[1736613095176,11.15605283,186.78,186.68,11.15605283]
[1736613095368,2.6781,186.76,186.71,2.6786]
[1736613095565,2.6781,186.76,186.68,11.15605283]
[1736613095771,12.76655283,186.81,186.71,11.15605283]
[1736613095973,2.678,186.77,186.73,2.6784]
[1736613098172,191.0,186.83,186.71,11.15605283]
[1736613098378,2.6776,186.8,186.75,2.6781]
[1736613098573,124.73620408,186.84,186.75,2.6781]
[1736613098877,2.6776,186.8,186.75,2.6781]
[1736613099273,124.73620408,186.84,186.75,2.6781]
[1736613100068,2.6777,186.79,186.75,2.6781]
[1736613100374,124.73620408,186.84,186.74,2.6783]
[1736613101476,11.15605283,186.85,186.74,2.6783]
[1736613101670,11.15605283,186.79,186.7,4.2282]
[1736613102268,2.6783,186.75,186.7,4.2282]
[1736613102468,2.6783,186.75,186.7,1.5493]
[1736613102669,2.6783,186.75,186.71,2.6787]
[1736613103274,11.15605283,186.79,186.7,1.5493]
[1736613103775,1.6764,186.81,186.7,1.5493]
[1736613104177,2.6776,186.8,186.75,2.6782]
[1736613104379,135.90911778,186.82,186.75,2.6782]
[1736613104974,2.6776,186.8,186.75,2.6782]
[1736613105684,2.6777,186.79,186.75,2.6782]
[1736613106384,2.6778,186.78,186.75,2.6782]
[1736613106779,135.90911778,186.82,186.7,1.5493]
[1736613106985,11.15605283,186.79,186.7,1.5493]
[1736613107485,2.6785,186.74,186.7,1.5493]
[1736613108085,2.6785,186.73,186.7,1.5493]
[1736613108488,2.6785,186.73,186.69,2.6789]
[1736613108986,11.15605283,186.79,186.69,2.6789]
[1736613109194,2.6792,186.69,186.65,2.6795]
[1736613111990,11.15605283,186.73,186.62,4.7476]
[1736613112184,2.6789,186.7,186.66,2.6795]
[1736613113792,2.6791,186.69,186.62,4.7476]
[1736613113987,2.6791,186.69,186.65,2.6796]
[1736613116292,2.6791,186.69,186.62,4.7476]
[1736613116593,2.6791,186.69,186.66,2.6795]
[1736613120701,2.6793,186.68,186.64,2.6797]
[1736613121403,2.6793,186.68,186.62,11.89521694]
[1736613121602,2.6793,186.68,186.65,2.6796]
[1736613122104,9.82651694,186.71,186.67,2.6793]
[1736613122700,2.679,186.7,186.67,2.6793]
[1736613124397,7.14761694,186.71,186.64,7.14761694]
[1736613124600,9.82641694,186.71,186.68,2.6792]
[1736613124902,7.14761694,186.71,186.68,2.6792]
[1736613125499,7.14761694,186.73,186.7,2.6788]
[1736613125905,7.14761694,186.73,186.68,7.14761694]
[1736613126207,7.14761694,186.73,186.71,2.6788]
[1736613126499,9.82591694,186.75,186.71,2.6788]
[1736613126705,7.14761694,186.75,186.72,2.6786]
[1736613126906,7.14761694,186.75,186.7,7.14761694]
[1736613128202,2.6781,186.76,186.72,2.6785]
[1736613128403,7.14761694,186.78,186.7,7.14761694]
[1736613128598,7.14761694,186.78,186.72,7.14761694]
[1736613128906,9.82551694,186.78,186.74,2.6784]
[1736613129409,7.14761694,186.78,186.75,2.6782]
[1736613129604,2.6777,186.79,186.75,2.6782]
[1736613131007,7.14761694,186.78,186.72,7.14761694]
[1736613131405,7.14761694,186.76,186.7,7.14761694]
[1736613131608,9.82581694,186.76,186.72,2.6786]
[1736613132208,2.6782,186.76,186.72,2.6786]
[1736613132408,9.82581694,186.76,186.72,2.6786]
[1736613134006,7.14761694,186.76,186.7,7.14761694]
[1736613134212,2.6784,186.74,186.7,7.14761694]
[1736613134612,2.6784,186.74,186.68,7.14761694]
[1736613135009,2.6784,186.74,186.7,2.6788]
[1736613136405,9.82601694,186.74,186.7,2.6788]
[1736613137908,2.6784,186.74,186.71,2.6787]
[1736613138614,7.14761694,186.76,186.66,76.62973519]
[1736613138816,2.6788,186.71,186.68,2.6792]
[1736613139518,7.14761694,186.69,186.66,76.62973519]
[1736613139718,7.14761694,186.69,186.62,4.7476]
[1736613140714,9.82681694,186.69,186.63,7.14761694]
[1736613140909,7.14761694,186.69,186.63,7.14761694]
[1736613141309,2.6789,186.7,186.66,2.6794]
[1736613141514,2.6789,186.7,186.65,7.14761694]
[1736613142320,2.6789,186.7,186.66,2.6795]
[1736613143021,2.6791,186.69,186.66,2.6795]
[1736613143320,2.6791,186.69,186.65,9.82721694]
[1736613143519,9.82671694,186.69,186.65,2.6796]
[1736613144119,9.82671694,186.69,186.62,14.57511694]
[1736613144120,2.6796,186.66,186.62,14.57511694]
[1736613144510,2.6796,186.66,186.62,11.89521694]
[1736613144713,2.6796,186.66,186.63,2.6799]
[1736613149424,2.6796,186.66,186.62,4.2887]
[1736613153026,11.16909347,186.71,186.62,4.2887]
[1736613153226,2.6796,186.65,186.62,4.2887]
[1736613153831,11.16909347,186.68,186.57,3.2843]
[1736613154716,2.68,186.63,186.57,3.2843]
[1736613156026,11.16909347,186.68,186.59,2.6804]
[1736613156027,2.6802,186.62,186.59,2.6804]
[1736613156221,11.16909347,186.68,186.59,2.6804]
[1736613156627,2.68,186.63,186.59,2.6804]
[1736613157626,2.68,186.63,186.6,2.6803]
[1736613159327,11.16909347,186.68,186.6,2.6803]
[1736613159530,2.6798,186.64,186.6,2.6803]
[1736613160033,2.6799,186.64,186.6,2.6803]
[1736613162229,2.6799,186.63,186.59,2.6804]
[1736613162426,11.16909347,186.7,186.59,2.6804]
[1736613162628,2.6803,186.61,186.57,5.965]
[1736613162930,11.16909347,186.67,186.57,1.6677]
[1736613164033,2.6801,186.62,186.58,2.6805]
[1736613165332,2.6801,186.62,186.58,9.83145387]
[1736613166336,2.6801,186.62,186.59,2.6805]
[1736613169038,2.6801,186.62,186.58,7.15095387]
[1736613169039,2.6801,186.62,186.58,9.83155387]
[1736613171740,7.15095387,186.64,186.58,9.83155387]
[1736613171941,2.6802,186.61,186.58,9.83155387]
[1736613176844,2.6802,186.61,186.57,1.6677]
[1736613177141,2.6804,186.6,186.57,2.6807]
[1736613178346,2.6802,186.62,186.58,9.83145387]
[1736613178547,2.6802,186.62,186.58,7.15095387]
[1736613179948,2.6802,186.62,186.59,2.6805]
[1736613180749,2.6802,186.61,186.58,7.15095387]
[1736613183450,2.6802,186.61,186.58,9.83155387]
[1736613184153,2.6802,186.61,186.58,2.6806]
[1736613184353,2.6802,186.61,186.58,9.83155387]
[1736613185048,2.6795,186.66,186.6,2.6803]
[1736613185253,7.15095387,186.68,186.6,7.15095387]
[1736613185457,7.15095387,186.68,186.62,7.15095387]
[1736613186349,2.6797,186.65,186.61,2.6801]
[1736613186546,7.15095387,186.66,186.6,7.15095387]
[1736613186952,5.38,186.71,186.57,1.6356]
[1736613186953,7.15095387,186.64,186.58,7.15095387]
[1736613187955,7.15095387,186.64,186.57,1.6356]
[1736613188154,2.6803,186.61,186.57,4.3163]
[1736613191659,2.6803,186.61,186.57,1.6356]
[1736613191958,2.6803,186.61,186.58,2.6806]
[1736613195469,2.6801,186.62,186.58,2.6806]
[1736613195669,2.6801,186.62,186.59,2.6805]
[1736613198166,2.6801,186.62,186.58,2.6806]
[1736613199373,15.02975423,186.7,186.57,8.78655387]
[1736613199574,7.15095387,186.66,186.59,7.15095387]
[1736613200671,2.6798,186.64,186.61,2.6802]
[1736613201680,2.6799,186.63,186.6,2.6803]
[1736613202473,9.83105387,186.62,186.58,2.6806]
[1736613202678,7.15095387,186.62,186.58,2.6806]
[1736613204179,2.6802,186.61,186.58,2.6806]
[1736613205682,2.6798,186.64,186.61,2.6802]
[1736613208183,2.6796,186.66,186.63,2.6799]
[1736613208585,7.15095387,186.67,186.63,2.6799]
[1736613210179,2.6795,186.66,186.63,2.6799]
[1736613214788,2.6795,186.66,186.62,2.68]
[1736613216487,2.6798,186.64,186.6,9.83125387]
[1736613216686,2.6798,186.64,186.6,7.15095387]
[1736613218183,2.6798,186.64,186.61,2.6802]
[1736613221289,12.37936076,186.72,186.62,7.15095387]
[1736613221592,7.15095387,186.68,186.62,7.15095387]
[1736613222295,7.15095387,186.68,186.57,1.6356]
[1736613222296,7.15095387,186.68,186.61,7.15095387]
[1736613222893,2.6796,186.66,186.62,2.68]
[1736613223995,2.6796,186.66,186.63,2.6799]
[1736613225298,9.83025387,186.68,186.63,7.15095387]
[1736613225794,9.83025387,186.68,186.65,2.6795]
[1736613225998,5.38,186.75,186.65,7.15095387]
[1736613226200,7.15095387,186.72,186.65,7.15095387]
[1736613226697,7.15095387,186.72,186.68,2.6792]
[1736613227296,9.82965387,186.72,186.68,2.6792]
[1736613228500,2.6788,186.71,186.68,2.6792]
[1736613229699,2.6783,186.75,186.71,2.6787]
[1736613229896,7.15095387,186.76,186.69,7.15095387]
[1736613230300,124.77319996,186.77,186.69,7.15095387]
[1736613230600,7.15095387,186.76,186.69,7.15095387]